Cogmind - Beta 14 @@@ ROGUE MODE // 2024.12.26 @ 04:54:51 Player: GreyJackal Result: Self-destructed Performance ------------- Evolutions (1) 500 Regions Visited (2) 400 Robots Destroyed (11) 55 Value Destroyed (110) 110 Prototype IDs (0) 0 Alien Tech Used (0) 0 Bonus (200) 200 TOTAL SCORE: 1265 Bonus ------- Pacifist 200 Cogmind --------- Core Integrity 156/400 Matter 214/400 Energy 100/100 System Corruption 0% Temperature Cool (0) Movement Core (50) Location -9/Materials Parts ------- > --- POWER (1) -------- (None) > --- PROPULSION (2) --- (None) > --- UTILITY (4) ------ Medium Matter Pod Visual Processing Unit > --- WEAPON (2) ------- (None) > --- INVENTORY (5) ---- (None) Peak State ------------ > --- POWER ------------ Light Ion Engine > --- PROPULSION ------- Flight Unit Flight Unit > --- UTILITY ---------- Medium Matter Pod Visual Processing Unit Medium Armor Plating > --- WEAPON ----------- Light Assault Rifle Light Assault Rifle > --- INVENTORY -------- (None) [Rating: 10] Favorites ----------- Power Light Ion Engine Engine Light Ion Engine Propulsion Wheel Wheel Wheel Flight Unit Flight Unit Utility Medium Matter Pod Device Tractor Beam Storage Medium Matter Pod Processor Visual Processing Unit Protection Medium Armor Plating Weapon Light Assault Rifle Ballistic Gun Light Assault Rifle Build | -11 -10 -9 ------- Run | Yrd Mat Mat Slots Evolved 2 | . . 2 Power . | . . . Propulsion . | . . . Utility 2 | . . 2 Weapon . | . . . Parts Attached 20 | 8 2 10 Power 3 | 1 . 2 Engine 3 | 1 . 2 Core . | . . . Reactor . | . . . Propulsion 5 | 2 . 3 Treads . | . . . Leg . | . . . Wheel 2 | 2 . . Hover . | . . . Flight 3 | . . 3 Utility 5 | . 2 3 Device 1 | . 1 . Storage 2 | . 1 1 Processor 1 | . . 1 Hackware . | . . . Protection 1 | . . 1 Artifact . | . . . Weapon 7 | 5 . 2 Energy Gun . | . . . Energy Cannon . | . . . Ballistic Gun 7 | 5 . 2 Ballistic Cannon . | . . . Launcher . | . . . Special Weapon . | . . . Impact Weapon . | . . . Slashing Weapon . | . . . Piercing Weapon . | . . . Special Melee Weapon . | . . . Unidentified Prototypes . | . . . Parts Lost 8 | . . 8 Power 2 | . . 2 Propulsion 3 | . . 3 Utility 1 | . . 1 Weapon 2 | . . 2 Highest Loss Streak 5 | . . 5 To Critical Strikes . | . . . Average Slot Usage (%) 78 | . 89 73 Engine 10 | . 14 9 Wheel 12 | . 28 4 Flight 10 | . . 15 Device 3 | . 9 1 Storage 10 | . 8 11 Processor 5 | . . 7 Protection 2 | . . 4 Ballistic Gun 23 | . 28 21 Peak Build Rating 10 | 5 7 10 Average Rating 6 | 3 6 7 On Entrance 4 | . 5 7 Naked Turns . | . . . Heaviest Build 14 | 5 8 14 Greatest Support 20 | 20 20 20 Greatest Overweight (x) 2 | 1 . 2 Average Overweight (x) . | . . . Largest Inventory Capacity 5 | 5 5 5 Average Capacity 5 | 5 5 5 Most Carried 4 | 2 1 4 Average Carried . | . . . Final Capacity 5 | 5 5 5 Final Carried . | . . . Class Distribution -------------------- 61% | Mutant 38% | Scavenger-Mutant Dominant Class ---------------- Mutant | -10/Materials Scavenger-Mutant | -9/Materials Resources | -11 -10 -9 ----------- Run | Yrd Mat Mat Matter Collected 362 | 203 . 159 Remotely . | . . . Salvage Created 175 | . . 175 Parts 20 | . . 20 Haulers Intercepted . | . . . Recyclers Shooed . | . . . Parts Field Recycled . | . . . Retrieved Matter . | . . . Parts Self-Destructed . | . . . Prevented . | . . . Kills | -11 -10 -9 ------- Run | Yrd Mat Mat Combat Hostiles Destroyed 11 | . . 11 Guns 11 | . . 11 Classes Destroyed 1 | . . 1 Swarmer 11 | . . 11 Best Kill Streak 4 | . . 4 Combat Bots Only 4 | . . 4 Max Kills in Single Turn 2 | . . 2 Gunslinging 1 | . . 1 Exploded . | . . . Melee . | . . . Uniques/NPCs Destroyed . | . . . Combat | -11 -10 -9 -------- Run | Yrd Mat Mat Hostile Shots Fired 143 | . . 143 Missed 38 | . . 38 Damage Taken 829 | . . 829 Core 244 | . . 244 Absorbed by Shields . | . . . Core Remaining (%) 100 | 100 100 . Volleys Fired 44 | . 2 42 Largest 2 | . 2 2 Hottest 40 | . 40 40 Shots Fired 88 | . 4 84 Gun 88 | . 4 84 Cannon . | . . . Launcher . | . . . Special . | . . . Kinetic 88 | . 4 84 Thermal . | . . . Explosive . | . . . Electromagnetic . | . . . Robot Hit Streak 5 | . 1 5 Robot Miss Streak 5 | . 2 5 Penetration Max . | . . . Secondary Targets 4 | . . 4 Max Gunslinging Chain 1 | . . 1 Shots Hit Robots 45 | . 2 43 Core Hits 19 | . . 19 Critical Kills 1 | . . 1 Critical Parts Destroyed . | . . . Critical Strikes 1 | . . 1 Destroy 1 | . . 1 Melee Attacks . | . . . Impact . | . . . Slashing . | . . . Piercing . | . . . Sneak Attacks . | . . . Combat Hostiles . | . . . Follow-up Attacks . | . . . Damage Inflicted 369 | . 17 352 Guns 369 | . 17 352 Cannons . | . . . Explosions . | . . . Melee . | . . . Ramming . | . . . Kinetic 369 | . 17 352 Thermal . | . . . Explosive . | . . . Electromagnetic . | . . . Impact . | . . . Slashing . | . . . Piercing . | . . . Highest Corruption . | . . . Average Corruption . | . . . Corruption Purged . | . . . Corruption Blocked . | . . . Overload Shots . | . . . Overflow Damage . | . . . Projectiles . | . . . Explosions . | . . . Melee . | . . . Knockbacks . | . . . Impact . | . . . Kinetic . | . . . Secondary . | . . . Self-Inflicted Damage . | . . . Shots . | . . . Rammed . | . . . Targets Rammed . | . . . Kicked . | . . . Crushed . | . . . Highest Temperature 9 | . . 9 Average Temperature 4 | . . 4 Received Heat Transfer 18 | . . 18 Siege Activations . | . . . Robots Corrupted . | . . . Combat Hostiles . | . . . Parts Fried . | . . . Impact Corruptions . | . . . Robots Melted . | . . . Combat Hostiles . | . . . Parts Melted . | . . . Heat Transferred . | . . . Parts Sabotaged . | . . . Parts Stolen . | . . . Parts Stripped . | . . . Power Chain Reactions . | . . . Alert | -11 -10 -9 ------- Run | Yrd Mat Mat Peak Influence 265 | . 23 265 Initial 9 | . . 9 Average 84 | . 10 138 Maximum Alert Level 1 | . . 1 Low Security (%) 87 | 100 100 78 Level 1 12 | . . 21 Level 2 . | . . . Level 3 . | . . . Level 4 . | . . . Level 5 . | . . . High Security . | . . . Max Security . | . . . Squads Dispatched 2 | . . 2 Investigation 1 | . . 1 Extermination . | . . . Reinforcement 1 | . . 1 Assault . | . . . Garrison . | . . . Intercept . | . . . Searches Triggered . | . . . Construction Impeded . | . . . Haulers Reinforced . | . . . Active Scanning Responses . | . . . Cargo Convoy Interrupts . | . . . Stealth | -11 -10 -9 --------- Run | Yrd Mat Mat Distress Signals 1 | . . 1 Communications Jammed . | . . . Distress Signals . | . . . Times Spotted 18 | . 1 17 Peak Tracking Total 5 | . 1 5 Tactical Retreats 1 | . . 1 Traps | -11 -10 -9 ------- Run | Yrd Mat Mat Traps Triggered . | . . . Indirectly . | . . . Trap Hack Attempts . | . . . Triggered . | . . . Disarmed 2 | . 2 . Reprogrammed . | . . . Reused . | . . . Traps Extracted . | . . . Installed . | . . . Triggered . | . . . Machines | -11 -10 -9 ---------- Run | Yrd Mat Mat Machines Disabled . | . . . Max in Single Turn . | . . . Machines Repaired . | . . . Machines Dismantled . | . . . Machines Sabotaged . | . . . Overloaded Fab Kills . | . . . Hacking | -11 -10 -9 --------- Run | Yrd Mat Mat Machines Accessed 6 | . 2 4 Terminals 6 | . 2 4 Fabricators . | . . . Repair Stations . | . . . Recycling Units . | . . . Scanalyzers . | . . . Garrison Access . | . . . Total Hacks 19 | . 9 10 Successful 11 | . 7 4 Failed 8 | . 2 6 Catastrophic . | . . . Database Lockouts . | . . . Manual . | . . . Terminals 19 | . 9 10 Fabricators . | . . . Repair Stations . | . . . Recycling Units . | . . . Scanalyzers . | . . . Garrison Access . | . . . Terminal Hacks 11 | . 7 4 Record 3 | . . 3 Robot Analysis 1 | . . 1 Alert Level 1 | . 1 . Locate Traps 1 | . 1 . Disarm Traps 1 | . 1 . Dispatch Records 1 | . 1 . Security Status 1 | . 1 . Transport Status 2 | . 2 . Fabricator Hacks . | . . . Repair Station Hacks . | . . . Recycling Unit Hacks . | . . . Scanalyzer . | . . . Garrison Access Hacks . | . . . Unauthorized Hacks . | . . . Terminals . | . . . Fabricators . | . . . Repair Stations . | . . . Recycling Units . | . . . Scanalyzers . | . . . Garrison Access . | . . . Data Cores Recovered . | . . . Used . | . . . Hacking Detections 6 | . 2 4 Full Trace Events 2 | . 1 1 Feedback Events . | . . . Feedback Blocked . | . . . Robot Schematics Acquired . | . . . Robots Built . | . . . Authchips . | . . . Time . | . . . Total Robot Build Rating . | . . . Part Schematics Acquired . | . . . Parts Built . | . . . Authchips . | . . . Time . | . . . Total Part Build Rating . | . . . Parts Repaired . | . . . Time . | . . . Parts Recycled . | . . . Recycled Matter . | . . . Retrieved Matter . | . . . Retrieved Components . | . . . Parts Scanalyzed . | . . . Part Schematics Acquired . | . . . Parts Damaged . | . . . Bothacking | -11 -10 -9 ------------ Run | Yrd Mat Mat Used RIF Installer . | . . . Robots Hacked . | . . . Non-combat . | . . . Combat . | . . . Robot Hacks Applied . | . . . Relay Couplers Released . | . . . Fabnet Peak Effective % . | . . . Robots Rewired . | . . . Allies Hacked . | . . . Hacks Repelled . | . . . Allies | -11 -10 -9 -------- Run | Yrd Mat Mat Total Allies . | . . . Largest Group . | . . . Highest-Rated Group . | . . . Highest-Rated Ally . | . . . Total Orders . | . . . Ally Attacks . | . . . Total Damage . | . . . Kills . | . . . Allies Corrupted . | . . . Allies Melted . | . . . Intel | -11 -10 -9 ------- Run | Yrd Mat Mat Robot Analysis Total 1 | . . 1 Derelict Logs Recovered . | . . . Drone Launches . | . . . Drone Recoveries . | . . . Exploration | -11 -10 -9 ------------- Run | Yrd Mat Mat Turns Passed 501 | 49 159 293 Spaces Moved 439 | 40 187 212 Core 18 | 17 . 1 Treads . | . . . Legs . | . . . Wheels 237 | 23 187 27 Hover . | . . . Flight 184 | . . 184 Fastest Speed 37 | 50 80 37 Average Speed 75 | 74 80 72 Slowest Speed 150 | 100 80 150 Overloaded Moves . | . . . Propulsion Burnouts . | . . . Robots Hopped . | . . . Cave-ins Triggered . | . . . Exploration Rate (%) 18 | 2 31 22 Regions Visited 2 Branch Regions . Pre-discovered Areas . | . . . Known Exits Taken . | . . . Unknown Exits Taken 2 | 1 1 . Scrap Searched . | . . . Spaces Dug . | . . . Terrain Destroyed . | . . . Melee . | . . . Projectile . | . . . AOE . | . . . Terrain Rammed . | . . . Walls Destroyed . | . . . Machines Disabled . | . . . Actions | -11 -10 -9 --------- Run | Yrd Mat Mat Total 543 | 59 192 292 Wait . | . . . Move 437 | 39 186 212 Hop . | . . . Pick Up 22 | 8 2 12 Fast Attach . | . . . Attach 18 | 6 2 10 Detach 8 | 1 . 7 Swap 2 | 2 . . Drop 12 | 3 . 9 Fire 44 | . 2 42 Melee . | . . . Ram . | . . . Kick . | . . . Crush . | . . . Escape Stasis . | . . . Rewire . | . . . Trap . | . . . Miscellaneous . | . . . Route ------- -11/Scrapyard -10/Materials -9/Materials (discovered 2 exits: [*Min] / [*Sto]) History --------- Turn | Location | Event 8 | -11/Scrapyard | Discovered new exit (range 14) 50 | -11/Scrapyard | Entered Materials 194 | -10/Materials | Discovered new exit (range 13) 209 | -10/Materials | Entered another Materials area 209 | -9/Materials | Evolved 2 slots: Utility x2 280 | -9/Materials | Lost 3 parts (1p1n1u) 393 | -9/Materials | Discovered new exit (range 18) 414 | -9/Materials | Discovered new exit (range 16) 489 | -9/Materials | Core integrity fell below 50% 502 | -9/Materials | Self-destructed Last Messages --------------- R-06 Scavenger collects Lgt. Assault Rifle. Acquired Flight Unit. Acquired 14 matter. R-06 Scavenger collects Lgt. Assault Rifle. Acquired Lgt. Ion Engine. Dropped Lgt. Ion Engine. Dropped Flight Unit. Dropped Med. Armor Plating. Acquired 17 matter. R-06 Scavenger collects Lgt. Ion Engine. C-30 ARC bursts open, deploying its payload. S-10 Pest unfolds itself. Flight Unit destroyed. K-01 Serf collects debris. Flight Unit destroyed. Lgt. Ion Engine destroyed. S-10 Pest destroyed. Switching to secondary target: G-34 Mercenary. K-01 Serf collects debris. Lgt. Assault Rifle destroyed. Map ----- +----------------------------------------------------+ | ?????????????????????????????????????????????????? | | ?????????????????????????????????????????????????? | | ?????????????????????????????????????????????????? | | ?????????????????????????????????????????????????? | | ?????????????????????????????????????????????????? | | ???????????????????????????????! ???????????????? | | ????????????????????????????? ???????????????? | | ????????????????????????????? "??????????????? | | ?????????????????????????????# ??????????????? | | ?????????????????????????????# ??????????????? | | ?????????????????????????????#" """????????????? | | ?????????????????????????????+%" """????????????? | | ?????????????????????????????#" """????????????? | | ?????????????????????????????# ?????????????? | | ?????????????????????????????# ?????????????? | | ?????????????????????????????# #?????????????? | | ?????????????????????????????# #?????????????? | | ?????????????????????????????# #?????????????? | | ?????????????????????????????# #?????????????? | | ?????????????????????????????# ###+########??? | | ?????????????????????????????# ## #??? | | ?????????????????????????????# ## #??? | | ?????????????????#+#########?# ## """ """ #??? | | ?????????????????# #?# ## """ """ #??? | | ?????????????????# """ ### ## """ """ #??? | | ?????????????????# """ r @ # # = #??? | | ?????????????????# """ [ss + ! #??? | | ?????????????????# ""*# # #??? | | ?????????????????# S"" ## ####+######??? | | ?????????????????# "" ## T #?????? | | ?????????????????# #T #?????? | | ?????????????????############ #?????? | | ????????????????????????????# """ """ #?????? | | ????????????????????????????# """ """ #?????? | | ????????????????????????????# """ """ ##?????? | | ????????????????????????????# #??????? | | ????????????????????????????# #??????? | | ????????????????????????????# #??????? | | ???????????????????????##+### ! ##" | | ???????????????????????# | | ?????????????????####### < | | ?????????????????+ T """ | | ?????????????????##### """ ##### | | ?????????????????????# """ #?????##### | | ?????????????????????#^ #?????????? | | ??????? ############ #?????????? | | ?????? """ """ #?????????? | | ?????? """ """ #?????????? | | ?????? """ """ #?????????? | | ????????????########## #?????????? | +----------------------------------------------------+ Best States ------------- Heat Dissipation 28 Energy Generation 10 Energy Capacity 125 Matter Stores 223 Matter Capacity 400 Sight Range 18 Terrain Scan Density 10 Armor Coverage 225 Evasion (%) 62 Item Schematics ----------------- None Robot Schematics ------------------ None Fabricated ------------ Nothing Alien Tech Used ----------------- None Achievements -------------- None Challenges ------------ None Game ------ Seed DimensionalAngularSaw Manual? 0 Play Time 00:17:08 Cumulative 6.3 hours Start 2024.12.26 @ 04:39:09 End 2024.12.26 @ 04:54:51 Sessions 1 Manual Loads 0 Difficulty Rogue Special Mode None Game No. 15 Rogue 15 Adventurer 0 Explorer 0 Win Type - Total 0 Types 0/0/0/0/0/0/0/0/0 Lore% 8 Gallery% 12 Achievement% 14 Wizard Run 0 Options --------- Layout 1 ASCII 0 Keyboard 0 Movement Mouse Keybinds 0 Fullscreen 1 Font 24/Smallcaps Map View 50x35 Zoom Use 0% Tactical HUD 0 Map Filters NONE Filters NONE Steam 1 RUN: bad46f2c-d073-4be9-9af6-a2c9f255911d